fUSD/lending_fUSD_20250804
["ID","MTS","AMOUNT","RATE_DAILY","PERIOD"]
[377313146,1754337041863,-286.652019,0.0004,14]
[377313147,1754337041872,-151.0,0.0004,14]
[377313148,1754337041883,-151.0,0.0004,14]
[377313149,1754337041892,-237.187367,0.0004,14]
[377313150,1754337041902,-237.187367,0.0004,14]
[377313151,1754337041911,-151.0,0.0004,14]
[377313152,1754337041921,-151.0,0.0004,14]
[377313153,1754337041930,-155.47109,0.0004,14]
[377313154,1754337041939,-582.87,0.00040148,2]
[377313155,1754337041949,-250.0,0.00040521,5]
[377313156,1754337041958,-22046.891222,0.0004078,3]
[377313157,1754337041968,-11383.8316563,0.0004078,3]
[377313158,1754337041977,-348.70301418,0.000408,60]
[377313159,1754337041986,-151.0,0.000408,14]
[377313160,1754337041996,-416.46438006,0.0004094,2]
[377313161,1754337042005,-2250.39811378,0.00041,7]
[377313162,1754337042018,-163.0,0.00041,90]
[377313163,1754337042028,-20454.23808787,0.00041049,15]
[377313164,1754337042037,-350.0,0.00041068,5]
[377313165,1754337042047,-1000.0,0.00041068,5]
[377313166,1754337042056,-11383.8316563,0.00041076,3]
[377313167,1754337042066,-620.15678991,0.00041076,7]
[377313168,1754337042075,-151.08,0.00041076,2]
[377313169,1754337042084,-221984.717299,0.00041086,3]
[377313170,1754337042094,-151.0,0.00041086,14]
[377313171,1754337042104,-1000.0,0.00041096,30]
[377313172,1754337042113,-1000.0,0.00041096,30]
[377313173,1754337042123,-1000.0,0.00041096,30]
[377313174,1754337042136,-1000.0,0.00041096,30]
[377313176,1754337042146,-1000.0,0.00041096,30]
[377313177,1754337042156,-1000.0,0.00041096,30]
[377313178,1754337042167,-1000.0,0.00041096,30]
[377313179,1754337042178,-1000.0,0.00041096,30]
[377313180,1754337042187,-1000.0,0.00041096,30]
[377313182,1754337042197,-1000.0,0.00041096,30]
[377313183,1754337042207,-1000.0,0.00041096,30]
[377313184,1754337042216,-1000.0,0.00041096,30]
[377313185,1754337042225,-1000.0,0.00041096,30]
[377313186,1754337042235,-1000.0,0.00041096,30]
[377313187,1754337042244,-1000.0,0.00041096,30]
[377313188,1754337042253,-1000.0,0.00041096,30]
[377313189,1754337042262,-436592.36595369,0.00041096,30]
[377313190,1754337042272,-151.0,0.00041096,14]
[377313191,1754337042281,-151.0,0.00041096,14]
[377313192,1754337042291,-152.488687,0.00041096,14]
[377313193,1754337042300,-237.187367,0.00041096,14]
[377313194,1754337042310,-237.187367,0.00041096,14]
[377313195,1754337042319,-2933.33265563,0.00041184,15]
[377313196,1754337042328,-151.0,0.00041201,120]
[377313197,1754337042337,-338.16,0.00041456,120]
[377313198,1754337042347,-450.0,0.00041616,10]
[377313199,1754337042356,-428.85697148,0.00041667,120]
[377313200,1754337042366,-22046.891222,0.00041849,3]
[377313201,1754337042375,-1100.0,0.000419,15]
[377313202,1754337042385,-376.21225651,0.00042,120]
[377313203,1754337042394,-1343.9261603,0.0004201,2]
[377313204,1754337042404,-166.77888784,0.00042153,28]
[377313206,1754337042413,-5691.91582817,0.00042154,3]
[377313207,1754337042423,-550.0,0.00042164,10]
[377313209,1754337042432,-500.0,0.00042164,10]
[377313210,1754337042442,-3600.0,0.000422,2]
[377313211,1754337042451,-280.53873,0.00042235,14]
[377313212,1754337042460,-280.53873,0.00042235,14]
[377313213,1754337042469,-151.0,0.00042235,14]
[377313214,1754337042478,-962.71,0.00042235,120]
[377313215,1754337042487,-161.21,0.00042255,60]
[377313216,1754337042497,-11383.8316563,0.00042414,3]
[377313217,1754337042506,-151.0,0.00042434,14]
[377313218,1754337042516,-20454.23808787,0.00042528,15]
[377313219,1754337042525,-229.07,0.00042551,14]
[377313220,1754337042534,-167.77,0.00042584,2]
[377313221,1754337042543,-151.0,0.00042592,14]
[377313222,1754337042553,-151.0,0.00042592,14]
[377313223,1754337042562,-237.187367,0.00042592,14]
[377313224,1754337042572,-237.187367,0.00042592,14]
[377313225,1754337042581,-182.05473,0.00042601,14]
[377313226,1754337042594,-182.05473,0.00042601,14]
[377313227,1754337042604,-731.811721,0.00042601,14]
[377313228,1754337042616,-731.811721,0.00042601,14]
[377313229,1754337042625,-151.0,0.00042601,14]
[377313230,1754337042635,-157.40748,0.00042601,14]
[377313231,1754337042645,-154.531672,0.00042601,14]
[377313232,1754337042656,-151.0,0.00042601,14]
[377313233,1754337042667,-151.0,0.00042711,120]
[377313234,1754337042678,-300.0,0.00042712,10]
[377313235,1754337042688,-151.0,0.00042756,14]
[377313236,1754337042698,-151.0,0.00042756,14]
[377313237,1754337042708,-157.55,0.00042756,14]
[377313238,1754337042722,-157.55,0.00042756,14]
[377313239,1754337042733,-151.0,0.00042756,14]
[377313240,1754337042742,-152.37459447,0.00043,120]
[377313241,1754337042753,-338.16,0.00043186,120]
[377313242,1754337042763,-180.94,0.00043192,2]
[377313243,1754337042773,-1000.0,0.00043213,2]
[377313244,1754337042781,-416.46438005,0.00043267,11]
[377313245,1754337042791,-900.08720564,0.00043414,2]
[377313246,1754337042802,-154.26102665,0.000435,30]
[377313247,1754337042812,-2933.33265563,0.00043613,15]
[377313248,1754337042823,-5691.91582817,0.00043717,3]
[377313249,1754337042833,-160.41,0.00043727,14]
[377313250,1754337042842,-678.82846413,0.00043736,120]
[377313251,1754337042851,-457.2201239,0.00043768,2]
[377313252,1754337042861,-211.425049,0.00043768,2]
[377313253,1754337042871,-22046.891222,0.00043825,3]
[377313254,1754337042882,-5691.91582817,0.00043825,3]
[377313255,1754337042892,-188.41212578,0.00043836,2]
[377313256,1754337042903,-161.21,0.00043848,60]
[377313257,1754337042913,-11383.8316563,0.0004397,3]
[377313258,1754337042925,-151.0,0.0004398,14]
[377313259,1754337042935,-22046.891222,0.0004398,3]
[377313260,1754337042945,-17075.7474845,0.0004398,3]
[377313261,1754337042955,-666.0,0.00043989,30]
[377313262,1754337042965,-151.0,0.0004399,14]
[377313263,1754337042975,-151.0,0.0004399,14]
[377313264,1754337042986,-280.53873,0.0004399,14]
[377313265,1754337042996,-280.53873,0.0004399,14]
[377313266,1754337043006,-151.0,0.0004399,14]
[377313267,1754337043018,-151.0,0.0004399,14]
[377313268,1754337043029,-44093.782444,0.0004399,3]
[377313269,1754337043038,-151.0,0.0004399,14]
[377313270,1754337043047,-39843.4107972,0.0004399,3]
[377313271,1754337043059,-151.0,0.0004399,14]
[377313272,1754337043069,-237.187367,0.0004399,14]
[377313274,1754337043079,-237.187367,0.0004399,14]
[377313275,1754337043090,-69836.34194881,0.00044,7]
[377313276,1754337043102,-652.46739545,0.00044,120]
[377313277,1754337043113,-206.86235254,0.00044,120]
[377313278,1754337043124,-547.1938562,0.00044,120]
[377313279,1754337043134,-449.1960482,0.00044,120]
[377313280,1754337043144,-151.0,0.00044,14]
[377313281,1754337043154,-151.0,0.00044,14]
[377313282,1754337043164,-151.0,0.00044,14]
[377313283,1754337043175,-182.05473,0.00044,14]
[377313289,1754337043185,-182.05473,0.00044,14]
[377313290,1754337043445,-151.0,0.00044,14]
[377313291,1754337043456,-731.811721,0.00044,14]
[377313292,1754337043467,-731.811721,0.00044,14]
[377313293,1754337043477,-151.0,0.00044,14]
[377313294,1754337043486,-157.601212,0.00044,14]
[377313295,1754337043496,-157.601212,0.00044,14]
[377313296,1754337043505,-151.0,0.00044,14]
[377313297,1754337043515,-280.53873,0.00044,14]
[377313298,1754337043524,-280.53873,0.00044,14]
[377313299,1754337043534,-151.0,0.00044,14]
[377313300,1754337043543,-235.52076,0.00044,14]
[377313301,1754337043552,-157.55,0.00044,14]
[377313302,1754337043561,-157.55,0.00044,14]
[377313303,1754337043571,-151.0,0.00044,14]
[377313304,1754337043580,-151.0,0.00044,14]
[377313305,1754337043590,-237.187367,0.00044,14]
[377313306,1754337043599,-237.187367,0.00044,14]
[377313307,1754337043608,-151.0,0.00044,14]
[377313308,1754337043618,-151.0,0.00044,14]
[377313309,1754337043628,-20454.23808787,0.00044007,15]
[377313310,1754337043638,-870.0,0.00044082,7]
[377313311,1754337043647,-508.0,0.0004416,10]
[377313312,1754337043659,-151.0,0.00044221,120]
[377313313,1754337043670,-165.56,0.00044228,2]
[377313314,1754337043679,-153.00328513,0.0004425,120]
[377313315,1754337043689,-293.53544314,0.0004439,120]
[377313316,1754337043699,-338.16,0.00044916,120]
[377313317,1754337043710,-5691.91582817,0.0004496,3]
[377313318,1754337043721,-22046.891222,0.0004497,3]
[377313319,1754337043732,-11383.8316563,0.0004497,3]
[377313320,1754337043742,-22046.891222,0.0004498,3]
[377313321,1754337043751,-11383.8316563,0.0004498,3]
[377313322,1754337043761,-182.05473,0.0004499,14]
[377313323,1754337043771,-182.05473,0.0004499,14]
[377313324,1754337043782,-151.0,0.0004499,14]
[377313325,1754337043791,-731.811721,0.0004499,14]
[377313326,1754337043801,-731.811721,0.0004499,14]
[377313328,1754337043811,-151.0,0.0004499,14]
[377313329,1754337043821,-182.36901,0.0004499,14]
[377313330,1754337043831,-280.53873,0.0004499,14]
[377313331,1754337043840,-280.53873,0.0004499,14]
[377313332,1754337043850,-151.0,0.0004499,14]
[377313333,1754337043862,-157.55,0.0004499,14]
[377313334,1754337043874,-157.55,0.0004499,14]
[377313335,1754337043883,-151.0,0.0004499,14]
[377313336,1754337043893,-22046.891222,0.0004499,3]
[377313337,1754337043903,-237.187367,0.0004499,14]
[377313338,1754337043914,-237.187367,0.0004499,14]
[377313339,1754337043924,-151.0,0.0004499,14]
[377313340,1754337043935,-151.0,0.0004499,14]
[377313341,1754337043946,-508.0,0.00044994,10]
[377313342,1754337043956,-30214.80104593,0.00045,2]
[377313343,1754337043965,-486.06739081,0.00045,120]
[377313344,1754337043974,-17274.62305153,0.00045,100]
[377313345,1754337043983,-2264.9336826,0.00045,120]
[377313346,1754337043993,-433.30272908,0.00045,120]
[377313347,1754337044004,-7537.57201937,0.00045,120]
[377313348,1754337044015,-524.48524192,0.00045,120]
[377313349,1754337044025,-209.95833796,0.00045,120]
[377313350,1754337044034,-1863.33514451,0.00045,120]
[377313351,1754337044044,-264.28950242,0.00045,120]
[377313352,1754337044053,-516.7055503,0.00045,120]
[377313353,1754337044063,-223.33369091,0.00045,120]
[377313354,1754337044072,-1168.5420667,0.00045,120]
[377313355,1754337044082,-505.22807118,0.00045,120]
[377313356,1754337044093,-1080.07696159,0.00045,30]
[377313357,1754337044105,-597.2141027,0.00045,10]
[377313358,1754337044114,-2096.60836088,0.00045,120]
[377313359,1754337044126,-1279.74,0.00045,30]
[377313360,1754337044137,-151.0,0.00045,14]
[377313361,1754337044147,-2130.08,0.00045,14]
[377313362,1754337044158,-151.0,0.00045,14]
[377313363,1754337044168,-151.0,0.00045,14]
[377313364,1754337044178,-1000.0,0.00045,2]
[377313365,1754337044188,-182.05473,0.00045,14]
[377313366,1754337044198,-182.05473,0.00045,14]
[377313367,1754337044209,-731.811721,0.00045,14]
[377313368,1754337044219,-731.811721,0.00045,14]
[377313369,1754337044230,-157.601212,0.00045,14]
[377313370,1754337044240,-157.601212,0.00045,14]
[377313371,1754337044249,-280.53873,0.00045,14]
[377313372,1754337044259,-280.53873,0.00045,14]
[377313373,1754337044268,-151.0,0.00045,14]
[377313374,1754337044278,-151.0,0.00045,120]
[377313375,1754337044287,-151.0,0.00045,14]
[377313376,1754337044297,-237.187367,0.00045,14]
[377313377,1754337044306,-151.0,0.00045,120]
[377313378,1754337044315,-237.187372,0.00045,14]
[377313380,1754337044324,-151.0,0.00045,14]
[377313381,1754337044333,-1000.0,0.00045,120]
[377313382,1754337044343,-466.7,0.00045006,30]
[377313383,1754337044353,-1167.62,0.00045006,30]
[377313384,1754337044365,-166.77888784,0.00045117,28]
[377313385,1754337044374,-161.21,0.00045442,120]
[377313386,1754337044386,-20454.23808787,0.00045485,15]
[377313387,1754337044397,-865.59667554,0.000455,120]
[377313388,1754337044407,-979.93954772,0.000455,120]
[377313389,1754337044417,-416.46438005,0.00045593,20]
[377313390,1754337044428,-151.0,0.00045696,14]
[377313391,1754337044439,-255.910624,0.00045696,14]
[377313392,1754337044449,-157.55,0.00045696,14]
[377313393,1754337044459,-157.55,0.00045696,14]
[377313394,1754337044469,-207.631726,0.00045696,14]
[377313395,1754337044478,-151.0,0.00045732,120]
[377313396,1754337044489,-22046.891222,0.00045769,3]
[377313397,1754337044499,-151.0,0.00045799,14]
[377313398,1754337044509,-508.0,0.00045828,10]
[377313399,1754337044519,-1331.32324905,0.000459,120]
[377313400,1754337044530,-1600.0,0.000459,16]
[377313401,1754337044540,-1055.0,0.000459,7]
[377313402,1754337044550,-300.0,0.0004595,30]
[377313403,1754337044559,-277.77,0.00045962,30]
[377313404,1754337044569,-253.5,0.00045962,30]
[377313405,1754337044579,-359.08,0.00045962,30]
[377313406,1754337044588,-330.78,0.00045962,30]
[377313407,1754337044597,-359.08,0.00045962,30]
[377313408,1754337044607,-359.08,0.00045962,30]
[377313409,1754337044616,-359.08,0.00045962,30]
[377313410,1754337044625,-359.08,0.00045962,30]
[377313411,1754337044636,-150.0,0.00045962,30]
[377313412,1754337044646,-345.76,0.00045962,30]
[377313413,1754337044655,-359.08,0.00045962,30]
[377313414,1754337044665,-165.39,0.00045962,30]
[377313415,1754337044675,-359.08,0.00045962,30]
[377313416,1754337044684,-150.0,0.00045962,30]
[377313417,1754337044693,-150.0,0.00045962,30]
[377313418,1754337044702,-150.0,0.00045962,30]
[377313419,1754337044711,-150.0,0.00045962,30]
[377313420,1754337044720,-150.52,0.00045962,30]
[377313421,1754337044730,-306.54,0.00045962,30]
[377313422,1754337044738,-330.78,0.00045962,30]
[377313423,1754337044747,-300.0,0.00045962,30]
[377313424,1754337044757,-150.0,0.00045962,30]
[377313425,1754337044766,-150.0,0.00045962,30]
[377313426,1754337044775,-150.0,0.00045962,30]
[377313427,1754337044784,-150.0,0.00045962,30]
[377313428,1754337044794,-356.97,0.00045962,30]
[377313429,1754337044805,-224.74,0.00045962,30]
[377313430,1754337044814,-165.39,0.00045962,30]
[377313431,1754337044824,-799.75991765,0.00046,120]
[377313432,1754337044833,-500.0,0.00046,120]
[377313433,1754337044843,-1000.0,0.00046,30]
[377313434,1754337044853,-1000.0,0.00046,120]
[377313435,1754337044863,-2933.33265563,0.00046042,15]
[377313436,1754337044872,-513.56151364,0.000464,120]
[377313437,1754337044883,-755.15705471,0.000464,120]
[377313438,1754337044892,-2130.08,0.000464,14]
[377313439,1754337044902,-182.05473,0.000464,14]
[377313440,1754337044912,-182.05473,0.000464,14]
[377313441,1754337044921,-151.0,0.000464,14]
[377313442,1754337044931,-962.71,0.00046459,120]
[377313443,1754337044940,-830.77615269,0.00046466,120]
[377313444,1754337044950,-151.0,0.000465,120]
[377313445,1754337044960,-22046.891222,0.00046545,3]
[377313446,1754337044970,-280.53873,0.00046565,14]
[377313447,1754337044980,-280.538734,0.00046565,14]
[377313448,1754337044989,-151.0,0.00046565,14]
[377313449,1754337044999,-22046.891222,0.00046565,3]
[377313450,1754337045010,-731.811721,0.00046575,14]
[377313451,1754337045023,-151.0,0.00046575,14]
[377313452,1754337045032,-731.811721,0.00046575,14]
[377313453,1754337045042,-1268.88,0.00046575,15]
[377313454,1754337045051,-1268.88,0.00046575,15]
[377313455,1754337045061,-1268.88,0.00046575,15]
[377313456,1754337045070,-1268.88,0.00046575,15]
[377313457,1754337045080,-1268.88,0.00046575,15]
[377313458,1754337045099,-1268.88,0.00046575,15]
[377313459,1754337045117,-1268.88,0.00046575,15]
[377313460,1754337045137,-1268.88,0.00046575,15]
[377313461,1754337045158,-1268.88,0.00046575,15]
[377313462,1754337045174,-1268.88,0.00046575,15]
[377313463,1754337045192,-1268.88,0.00046575,15]
[377313464,1754337045213,-1268.88,0.00046575,15]
[377313465,1754337045233,-1268.88,0.00046575,15]
[377313466,1754337045250,-1268.88,0.00046575,15]
[377313467,1754337045269,-1268.88,0.00046575,15]
[377313468,1754337045289,-1268.88,0.00046575,15]
[377313469,1754337045304,-1268.88,0.00046575,15]
[377313470,1754337045324,-1268.88,0.00046575,15]
[377313471,1754337045337,-1268.88,0.00046575,15]
[377313472,1754337045358,-1268.88,0.00046575,15]
[377313473,1754337045372,-1268.88,0.00046575,15]
[377313474,1754337045388,-1268.88,0.00046575,15]
[377313475,1754337045406,-1268.88,0.00046575,15]
[377313476,1754337045421,-1269.05801889,0.00046575,15]
[377313477,1754337045436,-157.55,0.00046575,14]
[377313478,1754337045452,-157.55,0.00046575,14]
[377313479,1754337045468,-157.24,0.00046575,2]
[377313480,1754337045494,-2000.0,0.000466,2]
[377313481,1754337045511,-1279.74,0.000466,30]
[377313482,1754337045527,-151.0,0.000466,120]
[377313483,1754337045544,-338.16,0.00046647,120]
[377313484,1754337045562,-508.0,0.00046661,11]
[377313485,1754337045580,-678.82846411,0.00046749,120]
[377313486,1754337045597,-1313.72112197,0.000468,120]
[377313487,1754337045616,-363.86271134,0.000468,120]
[377313488,1754337045633,-155.806924,0.000468,14]
[377313489,1754337045649,-20454.23808787,0.00046964,15]
[377313490,1754337045665,-1000.0,0.00047,120]
[377313491,1754337045680,-161.21,0.00047035,120]
[377313492,1754337045697,-151.0,0.00047103,14]
[377313493,1754337045713,-157.601212,0.00047103,14]
[377313494,1754337045728,-157.601212,0.00047103,14]
[377313495,1754337045745,-151.0,0.00047242,120]
[377313496,1754337045762,-2130.08,0.000473,14]
[377313497,1754337045777,-182.05473,0.00047319,14]
[377313498,1754337045794,-182.054735,0.00047319,14]
[377313499,1754337045810,-151.0,0.00047319,14]
[377313500,1754337045825,-157.55,0.00047319,14]
[377313501,1754337045842,-157.55,0.00047319,14]
[377313502,1754337045857,-151.0,0.00047319,14]
[377313503,1754337045873,-118975.3800846,0.00047481,2]
[377313504,1754337045889,-508.0,0.00047495,14]
[377313505,1754337045905,-22046.891222,0.00047514,3]
[377313506,1754337045921,-1000.0,0.00047534,2]
[377313507,1754337045937,-152.0,0.00047561,3]
[377313508,1754337045952,-1279.74,0.000476,30]
[377313509,1754337045968,-953.0,0.000476,2]
[377313510,1754337045983,-731.811721,0.00047662,14]
[377313511,1754337046000,-731.811729,0.00047662,14]
[377313512,1754337046018,-214599.00211267,0.0004767,120]
[377313513,1754337046035,-637.29,0.00047787,120]
[377313514,1754337046051,-1000.0,0.000478,7]
[377313515,1754337046068,-92978.5474972,0.00047828,2]
[377313516,1754337046084,-6422.1144623,0.00047828,2]
[377313517,1754337046100,-22046.891222,0.0004786,4]
[377313518,1754337046116,-151.0,0.0004787,14]
[377313519,1754337046132,-151.0,0.0004787,14]
[377313520,1754337046148,-157.601212,0.0004787,14]
[377313521,1754337046164,-157.601212,0.0004787,14]
[377313522,1754337046179,-157.55,0.0004787,14]
[377313523,1754337046195,-157.55,0.0004787,14]
[377313524,1754337046211,-44093.782444,0.0004787,4]
[377313525,1754337046227,-150.0,0.00047873,10]
[377313526,1754337046242,-300.0,0.00047879,30]
[377313527,1754337046258,-60000.0,0.0004788,120]
[377313528,1754337046273,-287.060022,0.0004788,14]
[377313529,1754337046290,-157.601212,0.0004788,14]
[377313530,1754337046306,-157.601212,0.0004788,14]
[377313531,1754337046323,-151.0,0.000479,120]
[377313532,1754337046339,-416.46438005,0.0004792,30]
[377313533,1754337046354,-24619.9957057,0.00048,91]
[377313534,1754337046369,-2130.08,0.00048,14]
[377313535,1754337046386,-157.601212,0.00048,14]
[377313536,1754337046402,-157.601212,0.00048,14]
[377313537,1754337046419,-1000.0,0.00048,120]
[377313538,1754337046434,-166.77888784,0.00048081,28]
[377313539,1754337046449,-200.0,0.00048192,3]
[377313540,1754337046466,-151.0,0.000482,120]
[377313541,1754337046483,-508.0,0.00048329,17]
[377313542,1754337046500,-338.16,0.00048377,120]
[377313543,1754337046516,-333.07046921,0.00048421,10]
[377313544,1754337046533,-20454.23808787,0.00048443,15]
[377313545,1754337046548,-2933.33265563,0.00048471,15]
[377313546,1754337046564,-157.19,0.000485,2]
[377313547,1754337046581,-934.0,0.0004852,2]
[377313548,1754337046598,-161.21,0.00048628,120]
[377313549,1754337046614,-151.0,0.00048753,120]
[377313550,1754337046630,-3737.80279803,0.000488,120]
[377313551,1754337046646,-1279.74,0.000488,30]
[377313552,1754337046663,-1000.0,0.00049,120]
[377313553,1754337046678,-508.0,0.00049162,20]
[377313554,1754337046694,-663.25749317,0.00049193,15]
[377313555,1754337046709,-2000.0,0.000493,2]
[377313557,1754337046724,-163.96,0.0004931,2]
[377313558,1754337046739,-157.601212,0.00049337,120]
[377313559,1754337046755,-157.601212,0.00049337,120]
[377313560,1754337046770,-163.96,0.00049364,2]
[377313561,1754337046786,-151.0,0.000494,120]
[377313562,1754337046803,-163.96,0.00049419,2]
[377313563,1754337046818,-915.0,0.0004944,2]
[377313564,1754337046833,-163.96,0.00049474,2]
[377313565,1754337046848,-163.96,0.00049529,2]
[377313566,1754337046863,-163.96,0.00049584,2]
[377313567,1754337046879,-163.96,0.00049638,2]
[377313568,1754337046894,-163.96,0.00049693,2]
[377313569,1754337046908,-163.96,0.00049748,2]
[377313570,1754337046924,-678.82846411,0.00049762,120]
[377313571,1754337046938,-200.02,0.00049781,120]
[377313572,1754337046953,-385973.75087382,0.00049792,7]
[377313575,1754337049781,-1051.08935454,0.00047728,2]
[377313576,1754337049793,-1051.0893545,0.00049114,2]
[377313577,1754337049803,-8018.75102941,0.00049792,7]
[377313578,1754337049844,-341.28950005,0.00049792,7]
[377313579,1754337049900,-448.43929017,0.00049792,7]
[377313580,1754337049979,-4503.783534,0.00049792,7]
[377313581,1754337051292,-500.063098,0.000382,26]
[377313582,1754337051302,-676.65288064,0.00049792,7]
[377313583,1754337051313,-588.0,0.00049792,7]
[377313584,1754337051325,-19118.59751423,0.00049792,7]
[377313585,1754337051336,-384.58747408,0.00049792,7]
[377313595,1754337210210,172.81884185,0.00020513,2]
[377313603,1754337360434,161.45,0.00013699,2]
[377313604,1754337360517,161.45,0.00023973,2]
[377313633,1754338231568,-204.24257268,0.00025664,2]
[377313634,1754338231578,-162.69256007,0.00025664,2]
[377313635,1754338231591,-224.41378125,0.00025763,2]
[377313636,1754338231609,-890.58621875,0.00025763,2]
[377313637,1754338231620,-1896.249,0.00025764,2]
[377313638,1754338231630,-400.0,0.00025764,2]
[377313639,1754338231640,-400.0,0.00025764,2]
[377313640,1754338231650,-165.92740505,0.00029,2]
[377313641,1754338231659,-258.73344046,0.00029911,2]
[377313642,1754338231668,-1213.0,0.00032073,7]
[377313643,1754338231678,-151.0,0.00032995,2]
[377313644,1754338231688,-151.0,0.00033057,2]
[377313645,1754338231698,-206.52538709,0.000339,29]
[377313646,1754338231707,-161.45,0.00034247,2]
[377313647,1754338231717,-698.076537,0.00034825,2]
[377313648,1754338231727,-215.61,0.0003808,2]
[377313649,1754338231736,-187.492,0.0003808,50]
[377313650,1754338231746,-1081.987,0.0003808,50]
[377313651,1754338231756,-32846.92532658,0.00038182,2]
[377313652,1754338231766,-1177.2297,0.00038192,30]
[377313653,1754338231775,-550.0,0.00038291,2]
[377313654,1754338231785,-151.0,0.00038292,7]
[377313655,1754338231794,-152.160657,0.00038292,7]
[377313656,1754338231804,-151.0,0.00038292,7]
[377313657,1754338231814,-151.0,0.00038292,7]
[377313658,1754338231823,-151.0,0.00038292,7]
[377313659,1754338231833,-151.0,0.00038292,7]
[377313660,1754338231843,-151.0,0.00038292,7]
[377313661,1754338231852,-151.0,0.00038292,7]
[377313662,1754338231861,-151.0,0.00038292,7]
[377313663,1754338231871,-151.0,0.00038292,7]
[377313664,1754338231881,-151.0,0.00038292,7]
[377313665,1754338231890,-151.0,0.00038292,7]
[377313666,1754338231900,-151.0,0.00038292,7]
[377313667,1754338231910,-151.0,0.00038292,7]
[377313668,1754338231919,-151.0,0.00038292,7]
[377313669,1754338231929,-151.0,0.00038292,7]
[377313670,1754338231938,-151.0,0.00038292,7]
[377313671,1754338231948,-204.451374,0.00038292,7]
[377313673,1754338231958,-204.451374,0.00038292,7]
[377313675,1754338231967,-204.451374,0.00038292,7]
[377313677,1754338231977,-204.451374,0.00038292,7]
[377313679,1754338231988,-169.753278,0.00038292,7]
[377313681,1754338231998,-169.753278,0.00038292,7]
[377313682,1754338232008,-169.753278,0.00038292,7]
[377313684,1754338232018,-169.753278,0.00038292,7]
[377313687,1754338232028,-151.0,0.00038292,7]
[377313688,1754338232039,-287.060022,0.00038292,7]
[377313691,1754338232050,-258.995046,0.00038292,7]
[377313692,1754338232060,-258.995046,0.00038292,7]
[377313694,1754338232070,-258.995046,0.00038292,7]
[377313696,1754338232080,-258.995046,0.00038292,7]
[377313698,1754338232089,-258.995046,0.00038292,7]
[377313699,1754338232099,-258.995046,0.00038292,7]
[377313700,1754338232108,-151.0,0.00038292,7]
[377313701,1754338232119,-151.0,0.00038292,7]
[377313702,1754338232130,-151.0,0.00038292,7]
[377313703,1754338232139,-151.0,0.00038292,7]
[377313704,1754338232148,-985.937816,0.00038292,7]
[377313705,1754338232158,-985.937816,0.00038292,7]
[377313706,1754338232169,-985.937816,0.00038292,7]
[377313707,1754338232178,-985.937816,0.00038292,7]
[377313708,1754338232188,-150.0,0.00038356,12]
[377313709,1754338232198,-151.0,0.00038373,14]
[377313710,1754338232208,-151.0,0.00038373,14]
[377313711,1754338232219,-151.0,0.00038373,14]
[377313712,1754338232230,-204.451374,0.00038373,14]
[377313713,1754338232240,-204.451374,0.00038373,14]
[377313714,1754338232252,-169.753278,0.00038373,14]
[377313715,1754338232263,-169.753278,0.00038373,14]
[377313716,1754338232274,-985.937816,0.00038373,14]
[377313717,1754338232285,-985.937816,0.00038373,14]